fUST/lending_fUST_20260422
["ID","MTS","AMOUNT","RATE_DAILY","PERIOD"]
[420957844,1776801801494,500.0,0.00025155,120]
[420957845,1776801801717,390.48,0.00025155,120]
[420957846,1776801805135,549.09,0.00025155,120]
[420957847,1776801806849,500.0,0.00025155,120]
[420957848,1776801808672,500.0,0.00025155,120]
[420957849,1776801808905,649.41,0.00025155,120]
[420957850,1776801811617,500.0,0.00025155,120]
[420957851,1776801813411,500.0,0.00025155,120]
[420957852,1776801817306,500.0,0.00025155,120]
[420957853,1776801822340,500.0,0.00025155,120]
[420957854,1776801825964,500.0,0.00025155,120]
[420957855,1776801827664,500.0,0.00025155,120]
[420957856,1776801829577,500.0,0.00025155,120]
[420957857,1776801832758,500.0,0.00025155,120]
[420957858,1776801834485,500.0,0.00025155,120]
[420957859,1776801836213,504.5030783,0.00025155,120]
[420957860,1776801842441,506.0138205,0.00025155,120]
[420957861,1776801844158,500.0,0.00025155,120]
[420957863,1776801849043,500.0,0.00025155,120]
[420957865,1776801852248,500.0,0.00025155,120]
[420957866,1776801858541,500.0,0.00025155,120]
[420957867,1776801867291,500.0,0.00025155,120]
[420957868,1776801872164,500.0,0.00025155,120]
[420957869,1776801874110,500.0,0.00025155,120]
[420957870,1776801874453,500.0,0.00025155,120]
[420957871,1776801875882,500.0,0.00025155,120]
[420957872,1776801879409,500.0,0.00025155,120]
[420957873,1776801880563,542.70388211,0.00025155,120]
[420957874,1776801881067,502.84007571,0.00025155,120]
[420957875,1776801882769,500.0,0.00025155,120]
[420957876,1776801884542,500.0,0.00025155,120]
[420957877,1776801887358,500.0,0.00025155,120]
[420957878,1776801887689,517.21753274,0.00025155,120]
[420957879,1776801889721,500.0,0.00025155,120]
[420957880,1776801891412,540.47015129,0.00025155,120]
[420957881,1776801891523,500.0,0.00025155,120]
[420957882,1776801899295,508.66567914,0.00025155,120]
[420957883,1776801903861,500.0,0.00025155,120]
[420957884,1776801906030,500.0,0.00025155,120]
[420957885,1776801907816,500.0,0.00025155,120]
[420957886,1776801911127,500.0,0.00025155,120]
[420957887,1776801912229,500.0,0.00025155,120]
[420957888,1776801912461,541.62,0.00025155,120]
[420957891,1776801914296,500.0,0.00025155,120]
[420957893,1776801921671,500.0,0.00025155,120]
[420957894,1776801923389,500.0,0.00025155,120]
[420957895,1776801925241,500.66642677,0.00025155,120]
[420957896,1776801926872,500.0,0.00025155,120]
[420957897,1776801929058,500.0,0.00025155,120]
[420957898,1776801929321,500.0,0.00025155,120]
[420957899,1776801931256,500.0,0.00025155,120]
[420957900,1776801933048,500.0,0.00025155,120]
[420957901,1776801934363,500.0,0.00025155,120]
[420957902,1776801934650,500.0,0.00025155,120]
[420957903,1776801934768,500.0,0.00025155,120]
[420957904,1776801936465,500.0,0.00025155,120]
[420957905,1776801936700,500.0,0.00025155,120]
[420957908,1776801936940,307.36,0.00025155,120]
[420957909,1776801936997,500.0,0.00025155,120]
[420957910,1776801938691,513.0615524,0.00025155,120]
[420957911,1776801940541,500.0,0.00025155,120]
[420957912,1776801941029,505.73998374,0.00025155,120]
[420957913,1776801941427,500.0,0.00025155,120]
[420957914,1776801942414,500.0,0.00025155,120]
[420957915,1776801946906,500.0,0.00025155,120]
[420957916,1776801947014,500.0,0.00025155,120]
[420957917,1776801947688,500.0,0.00025155,120]
[420957918,1776801948661,539.18834626,0.00025155,120]
[420957919,1776801948899,500.0,0.00025155,120]
[420957920,1776801949405,500.0,0.00025155,120]
[420957921,1776801950637,500.0,0.00025155,120]
[420957922,1776801951207,500.0,0.00025155,120]
[420957923,1776801952182,500.0,0.00025155,120]
[420957924,1776801954172,500.0,0.00025155,120]
[420957925,1776801955199,500.0,0.00025155,120]
[420957926,1776801955829,525.45,0.00025155,120]
[420957927,1776801957180,500.0,0.00025155,120]
[420957928,1776801957231,500.0,0.00025155,120]
[420957929,1776801963050,500.0,0.00025155,120]
[420957930,1776801964786,500.0,0.00025155,120]
[420957931,1776801966380,504.47292911,0.00025155,120]
[420957932,1776801966633,500.0,0.00025155,120]
[420957933,1776801968437,500.0,0.00025155,120]
[420957934,1776801970466,500.0,0.00025155,120]
[420957935,1776801972287,500.0,0.00025155,120]
[420957936,1776801972535,271.99,0.00025155,120]
[420957937,1776801973450,500.0,0.00025155,120]
[420957938,1776801973971,500.0,0.00025155,120]
[420957939,1776801974282,500.0,0.00025155,120]
[420957940,1776801975720,318.4547572,0.00025155,120]
[420957941,1776801976147,500.0,0.00025155,120]
[420957942,1776801979734,500.0,0.00025155,120]
[420957943,1776801981116,500.0,0.00025155,120]
[420957944,1776801984651,500.0,0.00025155,120]
[420957945,1776801989391,500.0,0.00025155,120]
[420957946,1776801989444,500.0,0.00025155,120]
[420957947,1776801993251,503.87363058,0.00025155,120]
[420957948,1776801997021,500.0,0.00025155,120]
[420957949,1776801998883,500.0,0.00025155,120]
[420957950,1776802004970,500.0,0.00025155,120]
[420957951,1776802006785,500.0,0.00025155,120]
[420957952,1776802007088,500.0,0.00025155,120]
[420957953,1776802009300,500.0,0.00025155,120]
[420957954,1776802012214,500.0,0.00025155,120]
[420957955,1776802028209,500.0,0.00025155,120]
[420957956,1776802028497,519.88,0.00025155,120]
[420957957,1776802034874,526.72608747,0.00025155,120]
[420957958,1776802052452,500.0,0.00025155,120]
[420957959,1776802056541,500.0,0.00025155,120]
[420957960,1776802056782,500.0,0.00025155,120]
[420957961,1776802057010,613.29,0.00025155,120]
[420957962,1776802058738,500.0,0.00025155,120]
[420957963,1776802060473,500.0,0.00025155,120]
[420957964,1776802064265,500.0,0.00025155,120]
[420957965,1776802067585,500.0,0.00025155,120]
[420957966,1776802067801,500.0,0.00025155,120]
[420957967,1776802068025,500.0,0.00025155,120]
[420957968,1776802068266,357.06,0.00025155,120]
[420957969,1776802070215,528.7127405,0.00025155,120]
[420957970,1776802071874,500.0,0.00025155,120]
[420957971,1776802073662,500.0,0.00025155,120]
[420957972,1776802073937,628.17,0.00025155,120]
[420957973,1776802079553,232.89753434,0.00025155,120]
[420957979,1776802086069,500.0,0.00025155,120]
[420957980,1776802090911,500.0,0.00025155,120]
[420957981,1776802101451,304.16612615,0.00025155,120]
[420957982,1776802106783,500.0,0.00025155,120]
[420957983,1776802108636,500.0,0.00025155,120]
[420957984,1776802108857,500.0,0.00025155,120]
[420957985,1776802109087,596.90245046,0.00025155,120]
[420957986,1776802111440,401.04183867,0.00025155,120]
[420957987,1776802114591,500.0,0.00025155,120]
[420957988,1776802122540,305.60107559,0.00025155,120]
[420957989,1776802125721,408.63217546,0.00025155,120]
[420957990,1776802127427,505.1788167,0.00025155,120]
[420957991,1776802129102,512.18554793,0.00025155,120]
[420957992,1776802135053,500.0,0.00025155,120]
[420957993,1776802135731,500.0,0.00025155,120]
[420957994,1776802136771,500.0,0.00025155,120]
[420957995,1776802136997,500.0,0.00025155,120]
[420957996,1776802137250,500.0,0.00025155,120]
[420957997,1776802137480,340.11,0.00025155,120]
[420957998,1776802139165,292.2387375,0.00025155,120]
[420958001,1776802172829,500.0,0.00025155,120]
[420958002,1776802173435,381.25,0.00025155,120]
[420958041,1776802231726,-160.15487325,0.00013292,2]
[420958043,1776802231736,-239.89237868,0.00013424,10]
[420958053,1776802232664,500.0,0.00025155,120]
[420958071,1776802238089,500.0,0.00025155,120]
[420958074,1776802238431,-1462.748,0.00013424,10]
[420958075,1776802238442,-3297.35962132,0.00013424,10]
[420958076,1776802238451,-300.0,0.0001356,2]
[420958077,1776802238460,-300.0,0.0001356,2]
[420958078,1776802238469,-300.08694609,0.00013561,2]
[420958085,1776802240434,-199.91305391,0.00013561,2]
[420958086,1776802240443,-100.26756986,0.00013561,2]
[420958135,1776802242915,-399.73243014,0.00013561,2]
[420958136,1776802242925,-500.0,0.00013561,2]
[420958137,1776802242934,-529.0,0.00013698,2]
[420958138,1776802242943,-192.110325,0.00013699,2]
[420958139,1776802242952,-1000.0,0.00013699,2]
[420958140,1776802242962,-1000.0,0.00013699,2]
[420958141,1776802242972,-184.0,0.00013837,2]
[420958142,1776802242981,-441.0,0.00013837,2]
[420958143,1776802242990,-300.0,0.0001393,2]
[420958144,1776802243000,-160.0,0.00014808,2]
[420958145,1776802243010,-228.222576,0.00015068,2]
[420958146,1776802243020,-526.74365663,0.00015073,2]
[420958147,1776802243030,-628.96865821,0.00015172,2]
[420958148,1776802243039,-500.0,0.00015172,2]
[420958149,1776802243049,-500.0,0.00015172,2]
[420958150,1776802243058,-500.0,0.00015172,2]
[420958151,1776802243068,-259.32848993,0.00015172,2]
[420958152,1776802243077,-114.69573726,0.00015172,2]
[420958158,1776802245921,-385.30426274,0.00015172,2]
[420958159,1776802245931,-500.0,0.00015172,2]
[420958160,1776802245941,-500.0,0.00015172,2]
[420958161,1776802245950,-500.0,0.00015172,2]
[420958162,1776802245960,-500.0,0.00015172,2]
[420958163,1776802245969,-500.0,0.00015172,2]
[420958164,1776802245978,-500.0,0.00015172,2]
[420958165,1776802245986,-200.0,0.00015172,2]
[420958166,1776802245996,-24708.93608556,0.00015173,2]
[420958167,1776802246010,-11830.74392801,0.00015173,2]
[420958288,1776802296929,500.0,0.00025155,120]
[420958291,1776802582166,500.0,0.00025155,120]
[420958292,1776802582418,500.0,0.00025155,120]
[420958293,1776802582665,482.88026848,0.00025155,120]
[420958294,1776802585903,500.0,0.00025155,120]
[420958295,1776802594419,308.41303563,0.00025153,120]
[420958296,1776802600684,500.0,0.00025153,120]
[420958297,1776802603134,500.0,0.00025153,120]
[420958298,1776802603371,246.38,0.00025153,120]
[420958299,1776802607058,500.0,0.00025153,120]
[420958300,1776802607206,500.0,0.00025153,120]
[420958301,1776802607279,500.0,0.00025153,120]
[420958302,1776802607444,500.0,0.00025153,120]
[420958303,1776802607872,289.85,0.00025153,120]
[420958304,1776802608051,549.18,0.00025153,120]
[420958305,1776802609581,391.94897771,0.00025153,120]
[420958306,1776802609826,500.0,0.00025153,120]
[420958307,1776802617483,500.0,0.00025153,120]
[420958308,1776802618392,500.0,0.00025153,120]
[420958309,1776802622365,500.0,0.00025153,120]
[420958310,1776802624310,329.88411156,0.00025153,120]
[420958311,1776802631814,500.0,0.00025153,120]
[420958312,1776802631967,500.0,0.00025153,120]
[420958313,1776802637000,546.49,0.00025153,120]
[420958314,1776802639799,500.0,0.00025153,120]
[420958315,1776802639933,500.0,0.00025153,120]
[420958316,1776802640944,500.0,0.00025153,120]
[420958317,1776802642885,500.0,0.00025153,120]
[420958318,1776802643122,500.0,0.00025153,120]
[420958319,1776802643360,500.0,0.00025153,120]
[420958320,1776802643597,500.0,0.00025153,120]
[420958321,1776802643829,419.31,0.00025153,120]
[420958322,1776802645917,500.0,0.00025153,120]
[420958323,1776802649728,500.0,0.00025153,120]
[420958324,1776802650455,500.0,0.00025153,120]
[420958325,1776802654093,500.0,0.00025153,120]
[420958326,1776802658527,500.0,0.00025153,120]
[420958327,1776802662104,500.0,0.00025153,120]
[420958328,1776802662337,383.86095341,0.00025153,120]
[420958329,1776802664393,500.0,0.00025153,120]
[420958330,1776802666318,536.07,0.00025153,120]
[420958331,1776802668223,520.73547892,0.00025153,120]
[420958332,1776802669214,500.0,0.00025153,120]
[420958333,1776802669446,502.45,0.00025153,120]
[420958334,1776802674723,500.0,0.00025153,120]
[420958335,1776802674943,277.68,0.00025153,120]
[420958336,1776802675365,500.0,0.00025153,120]
[420958337,1776802681951,500.0,0.00025153,120]
[420958338,1776802684803,500.0,0.00025153,120]
[420958339,1776802697431,500.0,0.00025153,120]
[420958340,1776802699382,500.0,0.00025153,120]
[420958341,1776802700024,252.91347024,0.00025153,120]
[420958342,1776802701006,500.0,0.00025153,120]
[420958343,1776802702119,500.0,0.00025153,120]
[420958344,1776802716579,500.0,0.00025153,120]
[420958345,1776802717484,500.0,0.00025153,120]
[420958346,1776802717718,500.0,0.00025153,120]
[420958347,1776802717955,267.67,0.00025153,120]
[420958348,1776802720937,500.0,0.00025153,120]
[420958349,1776802721205,622.12,0.00025153,120]
[420958350,1776802722872,500.0,0.00025153,120]
[420958351,1776802726610,500.0,0.00025153,120]
[420958352,1776802726840,314.04,0.00025153,120]
[420958353,1776802729121,599.93,0.00025153,120]
[420958354,1776802736454,559.49,0.00025153,120]
[420958355,1776802740103,500.0,0.00025153,120]
[420958356,1776802740355,500.0,0.00025153,120]
[420958357,1776802740636,385.23,0.00025153,120]
[420958358,1776802740909,500.0,0.00025153,120]
[420958359,1776802741148,219.0,0.00025153,120]
[420958360,1776802741383,500.83459632,0.00025153,120]
[420958361,1776802753093,500.0,0.00025153,120]
[420958362,1776802757614,294.90599855,0.00025153,120]
[420958363,1776802762762,500.0,0.00025153,120]
[420958364,1776802775490,533.89,0.00025153,120]
[420958365,1776802777160,516.81,0.00025153,120]
[420958366,1776802781525,500.0,0.00025153,120]
[420958367,1776802781836,500.0,0.00025153,120]
[420958368,1776802782093,256.27,0.00025153,120]
[420958369,1776802788077,501.57824382,0.00025153,120]
[420958370,1776802791560,500.0,0.00025153,120]
[420958371,1776802791725,657.47,0.00025153,120]
[420958372,1776802791846,500.0,0.00025153,120]
[420958373,1776802791955,657.47,0.00025153,120]
[420958374,1776802792098,500.0,0.00025153,120]
[420958375,1776802792191,657.47,0.00025153,120]
[420958376,1776802792325,500.0,0.00025153,120]
[420958377,1776802792423,657.47,0.00025153,120]
[420958378,1776802792577,500.0,0.00025153,120]
[420958379,1776802792654,657.47,0.00025153,120]
[420958380,1776802792808,446.1,0.00025153,120]
[420958381,1776802792887,657.47,0.00025153,120]
[420958382,1776802793129,657.47,0.00025153,120]
[420958383,1776802793356,657.47,0.00025153,120]
[420958384,1776802793701,657.47,0.00025153,120]
[420958385,1776802793857,657.47,0.00025153,120]
[420958386,1776802794080,657.47,0.00025153,120]
[420958387,1776802794303,657.47,0.00025153,120]
[420958388,1776802794531,657.47,0.00025153,120]
[420958389,1776802794761,657.47,0.00025153,120]
[420958390,1776802794992,657.47,0.00025153,120]
[420958391,1776802795363,657.47,0.00025153,120]
[420958392,1776802795583,657.47,0.00025153,120]
[420958393,1776802795816,657.47,0.00025153,120]
[420958394,1776802796050,657.47,0.00025153,120]
[420958395,1776802796453,657.47,0.00025153,120]
[420958396,1776802796688,657.47,0.00025153,120]
[420958397,1776802796930,657.47,0.00025153,120]
[420958398,1776802797160,657.47,0.00025153,120]
[420958399,1776802797390,657.58660311,0.00025153,120]
[420958400,1776802806146,500.0,0.00025153,120]
[420958401,1776802806383,252.31,0.00025153,120]
[420958402,1776802828537,500.0,0.00025153,120]
[420958403,1776802830543,500.0,0.00025153,120]
[420958404,1776802832335,500.0,0.00025153,120]
[420958405,1776802832450,500.0,0.00025153,120]
[420958406,1776802834145,500.0,0.00025153,120]
[420958407,1776802834386,500.0,0.00025153,120]
[420958408,1776802834625,500.0,0.00025153,120]
[420958409,1776802834895,500.0,0.00025153,120]
[420958410,1776802835134,500.0,0.00025153,120]
[420958411,1776802835390,500.0,0.00025153,120]
[420958412,1776802835759,500.0,0.00025153,120]
[420958413,1776802835996,500.0,0.00025153,120]
[420958414,1776802836214,500.0,0.00025153,120]
[420958415,1776802836458,500.0,0.00025153,120]
[420958416,1776802836696,500.0,0.00025153,120]
[420958417,1776802837063,187.86,0.00025153,120]
[420958418,1776802838745,500.0,0.00025153,120]
[420958419,1776802838972,500.0,0.00025153,120]
[420958420,1776802839219,500.0,0.00025153,120]
[420958421,1776802839436,500.0,0.00025153,120]
[420958422,1776802839724,500.0,0.00025153,120]
[420958423,1776802839983,500.0,0.00025153,120]
[420958424,1776802840206,500.0,0.00025153,120]
[420958425,1776802840426,500.0,0.00025153,120]
[420958426,1776802840659,500.0,0.00025153,120]
[420958427,1776802841024,500.0,0.00025153,120]
[420958428,1776802841407,500.0,0.00025153,120]
[420958429,1776802841681,500.0,0.00025153,120]
[420958430,1776802842042,500.0,0.00025153,120]
[420958431,1776802842316,500.0,0.00025153,120]
[420958432,1776802842550,500.0,0.00025153,120]
[420958433,1776802843262,500.0,0.00025153,120]
[420958434,1776802843490,500.0,0.00025153,120]
[420958435,1776802843884,500.0,0.00025153,120]
[420958436,1776802844115,500.0,0.00025153,120]
[420958437,1776802844715,283.33,0.00025153,120]
[420958438,1776802847034,500.0,0.00025153,120]
[420958439,1776802847421,500.0,0.00025153,120]
[420958440,1776802847529,322.54,0.00025153,120]
[420958441,1776802848112,503.12341479,0.00025153,120]
[420958442,1776802850554,547.23,0.00025153,120]
[420958443,1776802850801,500.0,0.00025153,120]
[420958444,1776802851035,500.0,0.00025153,120]
[420958445,1776802851225,502.74700702,0.00025153,120]
[420958446,1776802851285,371.01,0.00025153,120]
[420958447,1776802852245,253.01683298,0.00025153,120]
[420958448,1776802856870,500.0,0.00025153,120]
[420958449,1776802857180,500.0,0.00025153,120]
[420958450,1776802857412,500.0,0.00025153,120]
[420958451,1776802857643,500.0,0.00025153,120]
[420958452,1776802857867,500.0,0.00025153,120]
[420958453,1776802858091,500.0,0.00025153,120]
[420958454,1776802858326,500.0,0.00025153,120]
[420958455,1776802858382,500.0,0.00025153,120]
[420958456,1776802858565,500.0,0.00025153,120]
[420958457,1776802858797,500.0,0.00025153,120]
[420958458,1776802859047,500.0,0.00025153,120]
[420958459,1776802859273,500.0,0.00025153,120]
[420958460,1776802859502,500.0,0.00025153,120]
[420958461,1776802859733,500.0,0.00025153,120]
[420958462,1776802859963,500.0,0.00025153,120]
[420958463,1776802860229,500.0,0.00025153,120]
[420958464,1776802860489,500.0,0.00025153,120]
[420958465,1776802860726,500.0,0.00025153,120]
[420958466,1776802860955,500.0,0.00025153,120]
[420958467,1776802861183,300.25,0.00025153,120]
[420958468,1776802864686,475.42950063,0.00025153,120]
[420958469,1776802866401,500.0,0.00025153,120]
[420958470,1776802868782,500.0,0.00025153,120]
[420958471,1776802869010,266.17,0.00025153,120]
[420958472,1776802870504,500.0,0.00025153,120]
[420958473,1776802872396,500.0,0.00025153,120]
[420958474,1776802872633,260.42,0.00025153,120]
[420958475,1776802879831,500.15662021,0.00025153,120]
[420958477,1776802887072,500.0,0.00025153,120]
[420958478,1776802891061,500.0,0.00025162,120]
[420958479,1776802898902,500.0,0.00025162,120]
[420958480,1776802899124,317.81,0.00025162,120]
[420958481,1776802906786,500.0,0.00025162,120]
[420958482,1776802910265,500.0,0.00025162,120]
[420958483,1776802915427,500.0,0.00025162,120]
[420958484,1776802923576,500.0,0.00025162,120]
[420958485,1776802928769,500.0,0.00025162,120]
[420958486,1776802929027,500.0,0.00025162,120]
[420958487,1776802929274,500.0,0.00025162,120]
[420958488,1776802929511,500.0,0.00025162,120]
[420958489,1776802929738,500.0,0.00025162,120]
[420958490,1776802929957,500.0,0.00025162,120]
[420958491,1776802930190,500.0,0.00025162,120]
[420958492,1776802930452,500.0,0.00025162,120]
[420958493,1776802930686,324.53,0.00025162,120]
[420958494,1776802939135,500.0,0.00025162,120]
[420958495,1776802939375,221.05,0.00025162,120]
[420958496,1776802941374,500.0,0.00025162,120]
[420958497,1776802941663,407.25,0.00025162,120]
[420958498,1776802949705,500.0,0.00025162,120]
[420958499,1776802951970,500.0,0.00025162,120]
[420958500,1776802958421,500.0,0.00025162,120]
[420958501,1776802958658,174.49,0.00025162,120]
[420958502,1776802963560,500.0,0.00025162,120]
[420958503,1776802977738,500.0,0.00025162,120]
[420958504,1776802977983,331.47,0.00025162,120]
[420958505,1776802981375,500.000001,0.00025162,120]
[420958506,1776802984932,513.03423418,0.00025162,120]
[420958507,1776802985314,500.0,0.00025162,120]
[420958508,1776802985545,212.84,0.00025162,120]
[420958509,1776802988194,500.0,0.00025162,120]
[420958510,1776802990477,500.0,0.00025162,120]
[420958511,1776802990793,500.0,0.00025162,120]
[420958512,1776802994773,500.0,0.00025162,120]
[420958513,1776802995007,500.0,0.00025162,120]
[420958514,1776802995398,591.87,0.00025162,120]
[420958515,1776802996777,500.0,0.00025162,120]
[420958516,1776802997006,461.43,0.00025162,120]
[420958517,1776802997063,500.0,0.00025162,120]
[420958518,1776802997245,165.39,0.00025162,120]
[420958519,1776803001875,500.0,0.00025162,120]
[420958520,1776803002100,477.32,0.00025162,120]
[420958521,1776803003930,500.0,0.00025162,120]
[420958522,1776803007552,453.86427741,0.00025162,120]
[420958523,1776803009820,500.0,0.00025162,120]
[420958524,1776803010063,500.0,0.00025162,120]
[420958525,1776803010313,500.0,0.00025162,120]
[420958526,1776803010570,465.8,0.00025162,120]
[420958527,1776803013802,611.46,0.00025162,120]
[420958528,1776803016949,500.0,0.00025162,120]
[420958529,1776803023071,500.0,0.00025162,120]
[420958530,1776803025068,598.02,0.00025162,120]
[420958531,1776803072218,500.0,0.00025162,120]
[420958532,1776803072451,378.69,0.00025162,120]
[420958533,1776803118219,500.82729215,0.00025162,120]
[420958534,1776803141097,506.540001,0.00025162,120]
[420958535,1776803155146,500.0,0.00025162,120]
[420958536,1776803155279,551.56,0.00025162,120]
[420958537,1776803164298,500.0,0.00025162,120]
[420958538,1776803197705,500.0,0.00025162,120]
[420958539,1776803197817,500.0,0.00025162,120]
[420958540,1776803198053,174.41,0.00025162,120]
[420958541,1776803243850,500.0,0.00025162,120]
[420958542,1776803244751,500.0,0.00025162,120]
[420958543,1776803422913,500.0,0.00025162,120]
[420958544,1776803423136,575.02,0.00025162,120]
[420958545,1776803426442,500.0,0.00025162,120]
[420958546,1776803426694,482.3,0.00025162,120]
[420958579,1776803431852,-599.89335821,0.00013027,10]
[420958581,1776803431865,-4400.10664179,0.00013027,10]
[420958583,1776803431875,-156.95177579,0.00013427,2]
[420958585,1776803431885,-587.0,0.00013427,2]
[420958587,1776803431895,-948.0,0.00013698,2]
[420958589,1776803431906,-1000.0,0.00013699,2]
[420958591,1776803431916,-184.0,0.00014412,2]
[420958593,1776803431926,-494269.14300907,0.00014773,2]
[420958595,1776803431936,-203352.27042934,0.00014773,2]
[420958597,1776803431946,-160.0,0.00014836,2]
[420958599,1776803431956,-177.530315,0.00014868,2]
[420958601,1776803431966,-440.27806075,0.00014872,2]
[420958603,1776803431977,-500.0,0.00014872,2]
[420958605,1776803431987,-500.0,0.00014872,2]
[420958607,1776803431996,-500.0,0.00014872,2]
[420958609,1776803432007,-621.52994295,0.00014872,2]
[420958611,1776803432017,-500.0,0.00014872,2]
[420958613,1776803432027,-500.0,0.00014872,2]
[420958615,1776803432037,-500.0,0.00014872,2]
[420958617,1776803432047,-500.0,0.00014872,2]
[420958619,1776803432057,-500.0,0.00014872,2]
[420958621,1776803432067,-500.0,0.00014872,2]
[420958623,1776803432078,-32062.12730733,0.00014873,2]
[420958625,1776803432088,-1106.50480875,0.000149,2]
[420958627,1776803432098,-3020.09965517,0.000149,2]
[420958629,1776803432108,-535.28852977,0.000149,2]
[420958631,1776803432118,-1136.56839599,0.000149,2]
[420958633,1776803432128,-510.66644421,0.000149,2]
[420958635,1776803432138,-342.702099,0.000149,2]
[420958637,1776803432148,-342.702099,0.000149,2]
[420958639,1776803432158,-342.702099,0.000149,2]
[420958641,1776803432169,-342.702099,0.000149,2]
[420958643,1776803432178,-388.278,0.00014972,2]
[420958645,1776803432189,-500.0,0.00014973,2]
[420958647,1776803432199,-3873.01,0.00014973,2]
[420958649,1776803432209,-3873.01,0.00014973,2]
[420958651,1776803432220,-3873.01,0.00014973,2]
[420958653,1776803432230,-4666.69,0.00014973,2]
[420958655,1776803432240,-500.0,0.00015025,2]
[420958657,1776803432251,-478.75725327,0.00015025,2]
[420958659,1776803432261,-500.0,0.00015025,2]
[420958661,1776803432271,-500.0,0.00015025,2]
[420958663,1776803432281,-229.46801119,0.00015025,2]
[420958665,1776803432290,-2150.738,0.00015025,2]
[420958667,1776803432300,-1000.0,0.00015072,2]
[420958669,1776803432310,-1000.0,0.00015072,2]
[420958671,1776803432321,-1000.0,0.00015072,2]
[420958673,1776803432331,-167.596514,0.00015072,2]
[420958675,1776803432341,-167.596514,0.00015072,2]
[420958677,1776803432351,-167.596514,0.00015072,2]
[420958679,1776803432362,-167.596514,0.00015072,2]
[420958681,1776803432372,-151.0,0.00015072,2]
[420958683,1776803432382,-151.0,0.00015072,2]
[420958685,1776803432392,-2010.4083608,0.00015193,2]
[420958687,1776803432402,-222.958,0.00015372,2]
[420958689,1776803432412,-185.20309543,0.00015427,2]
[420958691,1776803432422,-162.09897232,0.00015573,2]
[420958693,1776803432432,-649.79302456,0.00015582,2]
[420958695,1776803432443,-239.0,0.00015671,3]
[420958697,1776803432458,-596.57557756,0.00015672,2]